Cogmind - Beta 13 @@@ ROGUE MODE // 2024.06.11 @ 22:53:02 Player: Kat Result: Self-destructed Performance ------------- Evolutions (2) 1000 Regions Visited (6) 1200 Robots Destroyed (65) 325 Value Destroyed (1185) 1185 Prototype IDs (24) 480 Alien Tech Used (0) 0 Bonus (388) 388 TOTAL SCORE: 4578 Bonus ------- Entered Garrisons 200 Aligned with FarCom 300 Friendly Fire -112 Cogmind --------- Core Integrity 460/550 Matter 14/300 Energy 54/100 System Corruption 0% Temperature Cool (42) Movement Walking (170) Ox1 Location -8/Garrison Parts ------- > --- POWER (1) -------- (None) > --- PROPULSION (2) --- Potential Leg Potential Leg > --- UTILITY (4) ------ Advanced Heat Sink High-capacity Storage Unit > --- WEAPON (4) ------- Heavy Plasma Cannon Heavy Plasma Cannon Heavy Missile Launcher > --- INVENTORY (20) --- Light Ion Engine Aluminum Leg Aluminum Leg Improved Heat Sink Sensor Array Experimental Sensor Array Seismic Detector Hacking Suite Beam Cannon Beam Cannon Particle Cannon Ion Cannon Autogun Autogun Autogun Autogun Autogun Autogun Greatsword Peak State ------------ > --- POWER ------------ Light Deuterium Engine > --- PROPULSION ------- Potential Leg Potential Leg > --- UTILITY ---------- Advanced Heat Sink High-capacity Storage Unit Shield Generator Hacking Suite > --- WEAPON ----------- Heavy Plasma Cannon Heavy Plasma Cannon Heavy Missile Launcher Heavy Missile Launcher > --- INVENTORY -------- Light Ion Engine Aluminum Leg Aluminum Leg Improved Heat Sink Sensor Array Experimental Sensor Array Seismic Detector Hacking Suite Beam Cannon Beam Cannon Particle Cannon Ion Cannon Autogun Autogun Autogun Autogun Autogun Autogun Greatsword [Rating: 56] Favorites ----------- Power Light Ion Engine Engine Light Ion Engine Power Core Light Nuclear Core Propulsion Aluminum Leg Leg Aluminum Leg Utility Improved Heat Sink Device Improved Heat Sink Storage Medium Storage Unit Hackware Hacking Suite Weapon Beam Cannon Energy Gun Medium Laser Energy Cannon Beam Cannon Ballistic Gun Autogun Launcher Heavy Missile Launcher Build | -11 -10 -10 -10 -9 -8 -8 ------- Run | Yrd Mat Min Exi Min Mat Gar Slots Evolved 4 | . . . . . 4 . Power . | . . . . . . . Propulsion . | . . . . . . . Utility 2 | . . . . . 2 . Weapon 2 | . . . . . 2 . Parts Attached 55 | 7 21 4 3 3 12 5 Power 7 | 1 2 2 . . 2 . Engine 6 | 1 1 2 . . 2 . Core 1 | . 1 . . . . . Reactor . | . . . . . . . Propulsion 15 | 2 10 . 2 . . 1 Treads . | . . . . . . . Leg 15 | 2 10 . 2 . . 1 Wheel . | . . . . . . . Hover . | . . . . . . . Flight . | . . . . . . . Utility 13 | 2 4 2 1 . 4 . Device 9 | 1 3 2 . . 3 . Storage 3 | 1 1 . 1 . . . Processor . | . . . . . . . Hackware 1 | . . . . . 1 . Protection . | . . . . . . . Artifact . | . . . . . . . Weapon 20 | 2 5 . . 3 6 4 Energy Gun 2 | 2 . . . . . . Energy Cannon 13 | . 5 . . 1 4 3 Ballistic Gun 1 | . . . . . 1 . Ballistic Cannon . | . . . . . . . Launcher 4 | . . . . 2 1 1 Special Weapon . | . . . . . . . Impact Weapon . | . . . . . . . Slashing Weapon . | . . . . . . . Piercing Weapon . | . . . . . . . Special Melee Weapon . | . . . . . . . Unidentified Prototypes 1 | . . 1 . . . . Parts Lost 4 | . 1 . . . . 3 Power 2 | . 1 . . . . 1 Propulsion . | . . . . . . . Utility 1 | . . . . . . 1 Weapon 1 | . . . . . . 1 Highest Loss Streak 3 | . 1 . . . . 3 To Critical Strikes . | . . . . . . . Average Slot Usage (%) 99 | . 99 100 99 100 95 98 Engine 11 | . 11 14 14 14 9 8 Leg 25 | . 28 28 27 28 18 17 Device 14 | . 13 14 14 14 13 17 Storage 12 | . 14 14 14 14 9 9 Hackware 2 | . . . . . 8 9 Energy Cannon 25 | . 27 28 28 19 21 17 Ballistic Gun 1 | . . . . . 5 7 Launcher 2 | . . . . 8 9 10 Naked Turns . | . . . . . . . Heaviest Build 80 | 13 22 20 50 50 67 80 Greatest Support 60 | 20 20 20 60 60 60 60 Greatest Overweight (x) 6 | 1 1 . 6 . 1 2 Average Overweight (x) . | . . . . . . 1 Largest Inventory Capacity 20 | 8 10 10 20 20 20 20 Average Capacity 12 | 7 9 10 10 20 20 20 Most Carried 20 | 4 10 10 10 10 20 20 Average Carried 11 | 2 8 9 10 10 14 20 Final Capacity 20 | 8 10 10 20 20 20 20 Final Carried 20 | 4 10 10 10 10 20 20 Class Distribution -------------------- 72% | Mutant 23% | Skirmisher 3% | Scavenger-Mutant Dominant Class ---------------- Mutant | -10/Materials Mutant | -10/Mines Mutant | -10/Exiles Mutant | -9/Mines Skirmisher | -8/Materials Skirmisher | -8/Garrison Resources | -11 -10 -10 -10 -9 -8 -8 ----------- Run | Yrd Mat Min Exi Min Mat Gar Matter Collected 670 | 211 261 40 . 55 84 19 Remotely . | . . . . . . . Salvage Created 2062 | 96 1261 350 . 135 106 114 Parts 117 | 7 70 18 . 12 5 5 Haulers Intercepted 2 | . 2 . . . . . Recyclers Shooed 2 | . 2 . . . . . Parts Field Recycled . | . . . . . . . Retrieved Matter . | . . . . . . . Parts Self-Destructed . | . . . . . . . Prevented . | . . . . . . . Kills | -11 -10 -10 -10 -9 -8 -8 ------- Run | Yrd Mat Min Exi Min Mat Gar Combat Hostiles Destroyed 34 | . 15 5 . 5 5 4 Cannons 22 | . 15 4 . 2 1 . AOE 11 | . . . . 3 4 4 Classes Destroyed 13 | 2 6 . . 4 . 1 Worker 7 | . 2 . . 5 . . Builder 1 | . . . . 1 . . Tunneler 3 | 1 2 . . . . . Hauler 2 | . 2 . . . . . Recycler 13 | 1 7 4 . 1 . . Operator 1 | . 1 . . . . . Watcher 4 | . 3 . . . . 1 Swarmer 13 | . 3 5 . 3 2 . Grunt 15 | . 12 . . . 3 . Sentry 4 | . . . . . . 4 Demolisher 1 | . . . . 1 . . Assembled 1 | . . . . 1 . . Guerrilla 1 | . . . . 1 . . Best Kill Streak 11 | 2 8 5 . 11 5 5 Combat Bots Only 5 | . 4 3 . 4 5 4 Max Kills in Single Turn 3 | 1 2 1 . 3 2 2 Gunslinging . | . . . . . . . Exploded 2 | . . . . 1 2 2 Melee . | . . . . . . . Uniques/NPCs Destroyed . | . . . . . . . Combat | -11 -10 -10 -10 -9 -8 -8 -------- Run | Yrd Mat Min Exi Min Mat Gar Hostile Shots Fired 204 | . 65 22 . 11 12 94 Missed 59 | . 12 11 . 3 5 28 Damage Taken 1356 | . 532 88 . 181 82 473 Core 272 | . 123 9 . 50 27 63 Absorbed by Shields 70 | . . . . . 30 40 Regen/Repaired (Parts) 69 | . 69 . . . . . Core Remaining (%) 63 | 100 . . . 27 . . Volleys Fired 98 | 4 61 12 . 9 5 7 Largest 4 | 2 2 2 . 2 4 4 Hottest 190 | 100 120 120 . 120 190 182 Shots Fired 207 | 8 122 24 . 18 17 18 Gun 17 | 8 . . . . 4 5 Cannon 174 | . 122 24 . 12 8 8 Launcher 16 | . . . . 6 5 5 Special . | . . . . . . . Kinetic 9 | . . . . . 4 5 Thermal 182 | 8 122 24 . 12 8 8 Explosive 16 | . . . . 6 5 5 Electromagnetic . | . . . . . . . Robot Hit Streak 9 | 2 9 4 . 3 4 7 Robot Miss Streak 4 | 2 4 2 . 2 4 2 Penetration Max . | . . . . . . . Secondary Targets . | . . . . . . . Shots Hit Robots 105 | 4 60 13 . 9 8 11 Core Hits 86 | 3 34 8 . 21 10 10 Critical Kills 1 | . . 1 . . . . Critical Parts Destroyed . | . . . . . . . Critical Strikes 3 | 2 . 1 . . . . Burn 2 | 2 . . . . . . Meltdown 1 | . . 1 . . . . Melee Attacks . | . . . . . . . Impact . | . . . . . . . Slashing . | . . . . . . . Piercing . | . . . . . . . Sneak Attacks . | . . . . . . . Combat Hostiles . | . . . . . . . Follow-up Attacks . | . . . . . . . Damage Inflicted 3159 | 51 1129 244 . 659 573 503 Guns 143 | 51 . . . . 26 66 Cannons 1676 | . 1124 244 . 121 74 113 Explosions 1304 | . . . . 507 473 324 Melee . | . . . . . . . Ramming 36 | . 5 . . 31 . . Kinetic 92 | . . . . . 26 66 Thermal 1727 | 51 1124 244 . 121 74 113 Explosive 1304 | . . . . 507 473 324 Electromagnetic . | . . . . . . . Impact . | . . . . . . . Slashing . | . . . . . . . Piercing . | . . . . . . . Highest Corruption . | . . . . . . . Average Corruption . | . . . . . . . Corruption Purged . | . . . . . . . Corruption Blocked . | . . . . . . . Overload Shots . | . . . . . . . Overflow Damage 26 | . 4 . . 22 . . Projectiles 4 | . 4 . . . . . Explosions 22 | . . . . 22 . . Melee . | . . . . . . . Knockbacks 1 | . 1 . . . . . Impact 1 | . 1 . . . . . Kinetic . | . . . . . . . Secondary . | . . . . . . . Self-Inflicted Damage . | . . . . . . . Shots . | . . . . . . . Rammed . | . . . . . . . Targets Rammed 4 | . 1 . . 3 . . Kicked 4 | . 1 . . 3 . . Crushed . | . . . . . . . Highest Temperature 529 | 117 529 90 . 36 292 102 Average Temperature 108 | 50 131 31 . 16 148 42 Received Heat Transfer 314 | . 171 . . 20 43 80 Effects 9 | . 8 . . . 1 . Shutdowns 3 | . 3 . . . . . Energy Bleed 1 | . . . . . 1 . Damage (major) 4 | . 4 . . . . . Damage (core) 1 | . 1 . . . . . Siege Activations . | . . . . . . . Robots Corrupted . | . . . . . . . Combat Hostiles . | . . . . . . . Parts Fried . | . . . . . . . Impact Corruptions . | . . . . . . . Robots Melted 1 | . . 1 . . . . Combat Hostiles 1 | . . 1 . . . . Parts Melted 9 | 2 4 3 . . . . Heat Transferred 3763 | 296 2368 518 . 259 148 174 Parts Sabotaged . | . . . . . . . Parts Stolen . | . . . . . . . Parts Stripped . | . . . . . . . Power Chain Reactions . | . . . . . . . Alert | -11 -10 -10 -10 -9 -8 -8 ------- Run | Yrd Mat Min Exi Min Mat Gar Peak Influence 319 | 10 290 149 . 207 266 319 Initial 172 | . 6 9 . . 82 172 Average 114 | 4 114 69 . 42 138 201 Maximum Alert Level 1 | . 1 . . 1 1 1 Low Security (%) 86 | 100 84 100 . 88 69 78 Level 1 13 | . 15 . . 11 30 21 Level 2 . | . . . . . . . Level 3 . | . . . . . . . Level 4 . | . . . . . . . Level 5 . | . . . . . . . High Security . | . . . . . . . Max Security . | . . . . . . . Squads Dispatched 5 | . 4 . . . 1 . Investigation 3 | . 3 . . . . . Extermination . | . . . . . . . Reinforcement 1 | . 1 . . . . . Assault . | . . . . . . . Garrison 1 | . . . . . 1 . Intercept . | . . . . . . . Searches Triggered . | . . . . . . . Construction Impeded . | . . . . . . . Haulers Reinforced . | . . . . . . . Active Scanning Responses . | . . . . . . . Cargo Convoy Interrupts . | . . . . . . . Stealth | -11 -10 -10 -10 -9 -8 -8 --------- Run | Yrd Mat Min Exi Min Mat Gar Distress Signals 1 | . 1 . . . . . Communications Jammed . | . . . . . . . Distress Signals . | . . . . . . . Times Spotted 44 | . 20 6 . 6 5 7 Peak Tracking Total 7 | . 6 3 . 4 3 7 Tactical Retreats 1 | . . . . 1 . . Traps | -11 -10 -10 -10 -9 -8 -8 ------- Run | Yrd Mat Min Exi Min Mat Gar Traps Triggered 3 | . 2 . . . . 1 Indirectly . | . . . . . . . Trap Hack Attempts . | . . . . . . . Triggered . | . . . . . . . Disarmed . | . . . . . . . Reprogrammed . | . . . . . . . Reused . | . . . . . . . Traps Extracted . | . . . . . . . Installed . | . . . . . . . Triggered . | . . . . . . . Machines | -11 -10 -10 -10 -9 -8 -8 ---------- Run | Yrd Mat Min Exi Min Mat Gar Machines Disabled 5 | . 1 . . 3 1 . Max in Single Turn 2 | . 1 . . 2 1 . Machines Repaired . | . . . . . . . Machines Dismantled . | . . . . . . . Machines Sabotaged . | . . . . . . . Overloaded Fab Kills . | . . . . . . . Hacking | -11 -10 -10 -10 -9 -8 -8 --------- Run | Yrd Mat Min Exi Min Mat Gar Machines Accessed 13 | . 6 . 4 . 3 . Terminals 7 | . 5 . . . 2 . Fabricators . | . . . . . . . Repair Stations 1 | . 1 . . . . . Recycling Units . | . . . . . . . Scanalyzers . | . . . . . . . Garrison Access 1 | . . . . . 1 . Total Hacks 56 | . 23 . 27 . 6 . Successful 43 | . 12 . 27 . 4 . Failed 13 | . 11 . . . 2 . Catastrophic 3 | . 3 . . . . . Database Lockouts . | . . . . . . . Manual 18 | . 12 . 1 . 5 . Terminals 17 | . 12 . . . 5 . Fabricators . | . . . . . . . Repair Stations 11 | . 11 . . . . . Recycling Units . | . . . . . . . Scanalyzers . | . . . . . . . Garrison Access 1 | . . . . . 1 . Terminal Hacks 29 | . 1 . 27 . 1 . Record 26 | . . . 26 . . . Locate Traps 2 | . 1 . . . 1 . Derelict Proto ID Bank 1 | . . . 1 . . . Fabricator Hacks . | . . . . . . . Repair Station Hacks 7 | . 7 . . . . . Scan Component 4 | . 4 . . . . . Repair 3 | . 3 . . . . . Recycling Unit Hacks . | . . . . . . . Scanalyzer . | . . . . . . . Garrison Access Hacks 1 | . . . . . 1 . Unlock Access 1 | . . . . . 1 . Unauthorized Hacks 6 | . 4 . . . 2 . Terminals 6 | . 4 . . . 2 . Botnet 6 | . 4 . . . 2 . Fabricators . | . . . . . . . Repair Stations . | . . . . . . . Recycling Units . | . . . . . . . Scanalyzers . | . . . . . . . Garrison Access . | . . . . . . . Data Cores Recovered . | . . . . . . . Used . | . . . . . . . Hacking Detections 6 | . 4 . . . 2 . Full Trace Events 3 | . 3 . . . . . Feedback Events . | . . . . . . . Feedback Blocked . | . . . . . . . Robot Schematics Acquired . | . . . . . . . Robots Built . | . . . . . . . Authchips . | . . . . . . . Time . | . . . . . . . Total Robot Build Rating . | . . . . . . . Part Schematics Acquired . | . . . . . . . Parts Built . | . . . . . . . Authchips . | . . . . . . . Time . | . . . . . . . Total Part Build Rating . | . . . . . . . Parts Repaired 3 | . 3 . . . . . Time 78 | . 78 . . . . . Parts Recycled . | . . . . . . . Recycled Matter . | . . . . . . . Retrieved Matter . | . . . . . . . Retrieved Components . | . . . . . . . Parts Scanalyzed . | . . . . . . . Part Schematics Acquired . | . . . . . . . Parts Damaged . | . . . . . . . Bothacking | -11 -10 -10 -10 -9 -8 -8 ------------ Run | Yrd Mat Min Exi Min Mat Gar Used RIF Installer . | . . . . . . . Robots Hacked . | . . . . . . . Non-combat . | . . . . . . . Combat . | . . . . . . . Robot Hacks Applied . | . . . . . . . Relay Couplers Released . | . . . . . . . Fabnet Peak Effective % . | . . . . . . . Robots Rewired . | . . . . . . . Allies Hacked . | . . . . . . . Hacks Repelled . | . . . . . . . Allies | -11 -10 -10 -10 -9 -8 -8 -------- Run | Yrd Mat Min Exi Min Mat Gar Total Allies . | . . . . . . . Largest Group . | . . . . . . . Highest-Rated Group . | . . . . . . . Highest-Rated Ally . | . . . . . . . Total Orders . | . . . . . . . Ally Attacks . | . . . . . . . Total Damage . | . . . . . . . Kills . | . . . . . . . Allies Corrupted . | . . . . . . . Allies Melted . | . . . . . . . Intel | -11 -10 -10 -10 -9 -8 -8 ------- Run | Yrd Mat Min Exi Min Mat Gar Robot Analysis Total . | . . . . . . . Derelict Logs Recovered 2 | . . 2 . . . . Drone Launches . | . . . . . . . Drone Recoveries . | . . . . . . . Exploration | -11 -10 -10 -10 -9 -8 -8 ------------- Run | Yrd Mat Min Exi Min Mat Gar Turns Passed 3448 | 96 1373 679 339 154 267 540 Spaces Moved 2201 | 61 841 520 320 110 173 176 Core 11 | 9 . . 2 . . . Treads . | . . . . . . . Legs 2190 | 52 841 520 318 110 173 176 Wheels . | . . . . . . . Hover . | . . . . . . . Flight . | . . . . . . . Fastest Speed 45 | 50 120 120 45 45 90 170 Average Speed 120 | 111 120 120 104 79 122 173 Slowest Speed 350 | 120 190 120 350 90 170 250 Overloaded Moves 27 | . . . 2 25 . . Propulsion Burnouts . | . . . . . . . Robots Hopped . | . . . . . . . Cave-ins Triggered . | . . . . . . . Exploration Rate (%) 47 | 4 94 94 70 32 18 23 Regions Visited 6 Branch Regions 3 Pre-discovered Areas 2 | . . 2 . . . . Known Exits Taken 1 | . . . . . 1 . Unknown Exits Taken 5 | 1 1 1 1 1 . . Scrap Searched 2 | . . 2 . . . . Spaces Dug 14 | . . . . . . 14 Terrain Destroyed 135 | . . . . 33 33 69 Melee . | . . . . . . . Projectile 2 | . . . . . . 2 AOE 133 | . . . . 33 33 67 Terrain Rammed . | . . . . . . . Walls Destroyed . | . . . . . . . Machines Disabled . | . . . . . . . Actions | -11 -10 -10 -10 -9 -8 -8 --------- Run | Yrd Mat Min Exi Min Mat Gar Total 2809 | 77 1084 553 325 156 219 395 Wait 375 | 2 122 10 . 32 10 199 Move 2196 | 60 840 519 319 110 172 176 Hop . | . . . . . . . Pick Up 36 | 4 17 3 . . 12 . Fast Attach 20 | 7 6 . 2 . 2 3 Attach 8 | . 1 1 . . 6 . Detach 7 | . 3 . . . 4 . Swap 27 | . 14 3 1 3 4 2 Drop 34 | . 19 5 3 . 4 3 Fire 98 | 4 61 12 . 9 5 7 Melee . | . . . . . . . Ram . | . . . . . . . Kick 3 | . 1 . . 2 . . Crush . | . . . . . . . Escape Stasis 5 | . . . . . . 5 Rewire . | . . . . . . . Trap . | . . . . . . . Miscellaneous . | . . . . . . . Route ------- -11/Scrapyard -10/Materials (discovered 4 exits: [*Mat x3] / [*Min]) -10/Mines (discovered 3 exits: [*Mat x2] / *Exi) -10/Exiles -9/Mines -8/Materials (discovered 2 exits: Sto / Gar) -8/Garrison History --------- Turn | Location | Event 3 | -11/Scrapyard | Discovered new exit (range 15) 97 | -11/Scrapyard | Entered Materials 285 | -10/Materials | Discovered new exit (range 16) 744 | -10/Materials | Build established: Mutant 760 | -10/Materials | Repaired Aluminum Leg 788 | -10/Materials | Repaired Aluminum Leg 815 | -10/Materials | Repaired Aluminum Leg 846 | -10/Materials | Discovered new exit (range 14) 1041 | -10/Materials | Discovered new exit (range 10) 1276 | -10/Materials | Discovered new exit (range 16) 1470 | -10/Materials | Entered Mines 1481 | -10/Mines | Discovered new exit (range 15) 1493 | -10/Mines | Core integrity fell below 50% 1519 | -10/Mines | Met a Derelict bent on vengeance 1586 | -10/Mines | Learned location of Zion (-6) 1655 | -10/Mines | Found a damaged Exp. Sensor Array with a note attached 1658 | -10/Mines | Found Prototype Device 1659 | -10/Mines | Identified Exp. Sensor Array 1764 | -10/Mines | Learned location of 1 exit from Materials 1829 | -10/Mines | Found a hidden stash of uninstalled traps 1835 | -10/Mines | Discovered new exit (range 8) 1875 | -10/Mines | Deemed a non-threat by the Exiles lab entrance 1875 | -10/Mines | Discovered new exit (range 5) 1955 | -10/Mines | Learned location of Storage (-8) 2149 | -10/Mines | Entered Exiles 2179 | -10/Exiles | Met 8R-AWN 2197 | -10/Exiles | Met EX-HEX 2238 | -10/Exiles | Met EX-BIN 2256 | -10/Exiles | Aligned with FarCom system 2257 | -10/Exiles | Given EX-Vault access code 2310 | -10/Exiles | Opened EX-Vault 2323 | -10/Exiles | Found Potential Leg 2326 | -10/Exiles | Found Potential Leg 2345 | -10/Exiles | Warned to stay clear of 0b10 Research branches 2357 | -10/Exiles | Exiles lab attacked by MAIN.C 2481 | -10/Exiles | Discovered new exit (range 10) 2488 | -10/Exiles | Left Exiles lab with Potential Leg 2488 | -10/Exiles | Entered Mines 2530 | -9/Mines | Assembled infested the area 2535 | -9/Mines | Assisted by a Guerilla fighting off Assembled 2622 | -9/Mines | Discovered new exit (range 15) 2642 | -9/Mines | Entered Materials 2642 | -8/Materials | Evolved 4 slots: Utility x2, Weapon x2 2643 | -8/Materials | Identified exit to Storage 2821 | -8/Materials | Garrison activated, responded to threat 2901 | -8/Materials | Identified exit to Garrison 2909 | -8/Materials | Entered Garrison 2929 | -8/Garrison | Build established: Skirmisher 3351 | -8/Garrison | Spotted B-75 Beast 3449 | -8/Garrison | Self-destructed Last Messages --------------- 03379_ Acquired 15 matter. 03386_ The unstable cave ceiling collapses. 03391_ Hvy. Assault Rifle crushed. 03392_ The unstable cave ceiling collapses. 03392_ Dropped Beam Cannon. 03398_ The unstable cave ceiling collapses. 03402_ Acquired Hvy. Plasma Cannon. 03403_ The unstable cave ceiling collapses. 03405_ Acquired Hvy. Plasma Cannon. 03406_ Dropped Shield Generator. 03414_ The unstable cave ceiling collapses. 03416_ Acquired 1 matter. 03422_ Potential Leg blasted off. 03424_ The unstable cave ceiling collapses. 03432_ Lgt. Deuterium Engine destroyed. 03433_ Acquired 3 matter. 03443_ Acquired Potential Leg. 03443_ Hvy. Missile Launcher destroyed. 03448_ Hacking Suite destroyed. 03448_ Critical hit (Blast). Map ----- +----------------------------------------------------+ | | | ????????????????????????????????? | | ????????????????????????????????? | | ????????????????????????????????? | | ????????????????????????????????? | | ????????????????????????????????? | | ????????????????????????????????? | | ????????????????????????????????? | | ????????????????????????????????? | | ????????????????????????????????? | | ????????????????????????????????? | | ?????????????????????????????#### | | ?????????????????????????????# | | ?????????????????????????????# | | ?????????????????????????????# | | ?????????????????????????????### | | ???????????????????????????????# | | ???????????????????????????????# | | ???????????????????????????????# | | ???????????????????????????????# | | ????###??########??????????????# | | ??### #### # #####??????????# | | ??#! !### ## ##?????????# | | ??#! ! # ## #?????????# | | ?##! ! # ## # ############ | | ?#! @ % % %! + | | ?# ]] ! B + | | ?##! [ % ###"//###### | | ??#! [ # #???? #????# | | ??#! [## # #??????????# | | ??### ###### # ####??######### | | ????###????#######?????# + | | ???????????????????????# + | | ??????????????????????## ###### | | ??????????????????????#/ !#???# | | ??????????????????????#/ !#???# | | ??????????????????????#/ !#???# | | ??????????????????????######???# | | ???????????????????????????????# | | ???????????????????????????????# | | ???????????????????????????????# | | ???????????????????????????????# | | ???????????????????????????????# | | ???????????????????????????????# | | ???????????????????????????????# | | ???????????????????????????????# | | ???????????????????????????????# | | ???????????????????????????????## | | ????????????????????????????????? | | ????????????????????????????????? | +----------------------------------------------------+ Best States ------------- Heat Dissipation 50 Energy Generation 14 Energy Capacity 160 Matter Stores 300 Matter Capacity 300 Sight Range 16 Robot Scan Range 20 Terrain Scan Density 10 Evasion (%) 66 Offensive Hacking 10 Item Schematics ----------------- None Robot Schematics ------------------ None Fabricated ------------ Nothing Alien Tech Used ----------------- None Achievements -------------- None Challenges ------------ None Game ------ Seed InsulationShockAutohacker Manual? 0 Play Time 00:30:48 Cumulative 33.2 hours Start 2024.06.11 @ 22:23:21 End 2024.06.11 @ 22:53:02 Sessions 1 Manual Loads 0 Difficulty Rogue Special Mode None Game No. 72 Rogue 72 Adventurer 0 Explorer 0 Win Type - Total 0 Types 0/0/0/0/0/0/0/0/0 Lore% 22 Gallery% 28 Achievement% 23 Wizard Run 0 Options --------- Layout 0 ASCII 0 Keyboard 0 Movement Mouse Keybinds 0 Fullscreen 2 Font 18/Terminus Map View 76x50 Zoom Use 0% Tactical HUD 1 Map Filters NONE Filters NONE Steam 1 RUN: 9985d633-eb51-4c27-b90d-c04866247de7